bitfinex/quotes_ETHUSD_20220731
["timestamp","ask_amount","ask_price","bid_price","bid_amount"]
[1659307316833,0.34551925,1677.6,1676.7,3.0]
[1659307316834,0.34551925,1677.6,1676.7,0.05]
[1659307317031,6.197,1677.5,1676.7,0.05]
[1659307317249,6.197,1677.5,1676.6,0.05]
[1659307317250,0.15,1677.2,1676.6,0.05]
[1659307317472,3.65,1676.7,1676.4,0.05]
[1659307317708,3.5,1676.8,1676.1,0.73161211]
[1659307317709,0.15,1676.5,1676.1,0.78161211]
[1659307317912,0.15,1676.4,1675.8,0.05]
[1659307318063,0.34302167,1676.4,1675.6,0.05]
[1659307318404,0.84302167,1676.4,1675.5,0.05]
[1659307318603,0.79302167,1676.4,1675.5,0.05]
[1659307318777,0.64302167,1676.4,1675.5,0.05]
[1659307319502,0.39302167,1676.4,1675.5,0.05]
[1659307319662,0.15,1675.8,1675.5,0.05]
[1659307319862,0.15,1675.8,1675.2,0.6626241]
[1659307319863,0.34302167,1675.7,1675.2,0.6626241]
[1659307320060,0.34302167,1675.7,1674.6,13.20349576]
[1659307320061,0.15,1675.6,1675.0,0.05]
[1659307320281,0.15,1675.3,1674.8,0.05]
[1659307320498,0.15,1675.3,1674.6,10.4719]
[1659307320808,0.15,1675.3,1674.6,10.4219]
[1659307321616,0.05,1675.4,1675.0,0.05]
[1659307321773,0.05,1675.7,1674.8,3.0]
[1659307321955,0.05,1675.7,1675.1,0.17598436]
[1659307322156,0.05,1675.9,1675.1,0.17598436]
[1659307322394,0.15,1675.7,1675.0,0.05]
[1659307322597,0.15266818,1675.7,1674.9,0.05]
[1659307322803,0.15266818,1675.7,1674.8,8.55]
[1659307322973,0.20266818,1675.7,1674.8,8.55]
[1659307323176,0.15,1675.5,1675.0,0.6126241]
[1659307323592,0.15,1675.2,1674.8,0.05]
[1659307323796,0.15,1675.2,1674.6,2.7289]
[1659307323977,0.49302167,1675.2,1674.6,2.7289]
[1659307324178,0.79302167,1675.2,1674.6,2.7289]
[1659307324412,0.05,1675.4,1674.8,0.05]
[1659307324566,0.05,1675.5,1675.0,0.05]
[1659307324767,0.00261768,1675.6,1675.0,0.05]
[1659307325009,0.00261768,1675.6,1675.1,2.89804672]
[1659307325221,0.05,1675.8,1675.2,3.0]
[1659307325531,0.05,1675.9,1675.2,6.07403108]
[1659307325822,13.86436155,1676.3,1675.2,6.07403108]
[1659307325823,0.05,1676.0,1675.5,0.05]
[1659307325982,0.0026173,1675.9,1675.7,0.05]
[1659307326591,0.5836173,1675.9,1675.8,0.17598436]
[1659307326794,3.47904672,1675.9,1675.4,0.05]
[1659307327113,7.795,1676.1,1675.3,0.05]
[1659307327306,2.94804672,1676.1,1675.3,2.89804672]
[1659307327508,0.14302167,1676.0,1675.3,2.89804672]
[1659307327712,0.14565553,1676.0,1675.3,2.89804672]
[1659307328081,0.14565553,1676.0,1675.4,3.0]
[1659307328485,0.29302167,1676.0,1675.4,3.0]
[1659307328710,3.19106839,1676.0,1675.4,3.0]
[1659307328929,0.14302167,1676.0,1675.4,0.20169268]
[1659307329203,2.89804672,1675.9,1675.4,0.20169268]
[1659307331058,3.49106839,1675.9,1675.4,0.20169268]
[1659307331299,3.34106839,1675.9,1675.4,0.20169268]
[1659307331654,0.4972,1676.1,1675.5,0.05]
[1659307331885,0.4972,1676.2,1675.6,0.20169268]
[1659307332088,3.34524672,1676.2,1675.6,0.49989268]
[1659307332292,0.4472,1676.3,1675.6,0.49989268]
[1659307332510,3.34524672,1676.3,1675.6,0.49989268]
[1659307332656,3.34524672,1676.3,1675.6,0.20169268]
[1659307332855,0.15,1676.1,1675.6,0.20169268]
[1659307333060,3.04804672,1676.1,1675.6,0.20169268]
[1659307333281,0.15,1675.7,1675.4,0.05]
[1659307333597,0.15,1675.5,1675.4,0.73179077]
[1659307334016,0.15,1675.5,1675.0,0.05]
[1659307334162,0.15,1675.5,1675.0,0.20169268]
[1659307334361,0.7473,1675.6,1675.0,0.20169268]
[1659307334597,0.3,1675.6,1675.0,0.20169268]
[1659307334804,3.54534672,1675.7,1675.0,0.20169268]
[1659307334805,3.84534672,1675.7,1675.0,0.20169268]
[1659307334976,3.79534672,1675.7,1675.0,0.20169268]
[1659307335177,0.15,1675.3,1675.0,0.20169268]
[1659307335392,2.89804672,1675.2,1674.8,0.20169268]
[1659307335964,0.05,1675.4,1674.9,2.89804672]
[1659307336170,0.4473,1675.6,1675.0,0.20169268]
[1659307336171,0.4973,1675.6,1675.0,0.20169268]
[1659307336463,0.0526827,1675.7,1675.0,3.1497394]
[1659307336678,0.0526827,1675.7,1675.0,4.5912594]
[1659307336679,0.0026827,1675.7,1675.0,4.5912594]
[1659307337107,0.14570437,1675.7,1675.0,4.7404087]
[1659307337281,0.14570437,1675.7,1675.1,3.0]
[1659307337282,0.14302167,1675.7,1675.1,3.0]
[1659307337709,0.14302167,1675.7,1675.1,3.20169268]
[1659307338778,0.14302167,1675.7,1675.2,3.05]
[1659307338974,0.14302167,1675.7,1675.4,0.05]
[1659307339790,0.4972,1676.0,1675.4,0.05]
[1659307339791,0.05,1676.0,1675.4,0.05]
[1659307339993,3.34534672,1675.9,1675.4,0.05]
[1659307340352,2.89804672,1675.9,1675.4,0.05]
[1659307340520,0.15,1675.8,1675.3,0.20511796]
[1659307340679,3.04804672,1675.8,1675.3,0.20511796]
[1659307340875,2.89804672,1675.8,1675.3,0.20511796]
[1659307341114,0.3,1675.9,1675.3,0.20511796]
[1659307341115,3.19804672,1675.9,1675.3,0.20511796]
[1659307341475,3.20128607,1675.9,1675.3,0.20511796]
[1659307341691,2.89804672,1675.8,1675.3,0.20511796]
[1659307341890,3.04804672,1675.8,1675.3,0.20511796]
[1659307343293,3.19106839,1675.8,1675.3,0.20511796]
[1659307343693,3.34534672,1675.7,1675.1,3.05]
[1659307343927,3.04106839,1675.6,1674.9,4.84017]
[1659307344162,3.04106839,1675.6,1674.9,1.99186268]
[1659307344373,3.04106839,1675.6,1674.9,0.20169268]
[1659307344537,3.04804672,1675.5,1674.9,0.20169268]
[1659307344927,2.89804672,1675.5,1674.9,0.20169268]
[1659307346134,3.04106839,1675.6,1674.9,0.50007268]
[1659307346363,0.14302167,1675.6,1674.9,9.4789194]
[1659307346578,0.14302167,1675.6,1674.9,4.8899194]
[1659307346730,0.14302167,1675.6,1674.9,4.7899194]
[1659307347356,0.14302167,1675.6,1675.0,3.0]
[1659307347593,6.347,1675.2,1674.8,0.05]
[1659307347926,6.347,1675.2,1674.5,0.05]
[1659307347927,13.07254672,1675.1,1674.5,0.05]
[1659307348043,9.24504672,1675.0,1674.3,0.05]
[1659307348241,9.24504672,1674.7,1674.2,0.05]
[1659307348437,9.24504672,1674.7,1674.0,0.3]
[1659307348438,0.15,1674.4,1674.0,0.35]
[1659307348741,3.64574672,1674.3,1674.0,0.3]
[1659307349367,0.05,1674.6,1674.0,4.843]
[1659307349548,0.05,1674.7,1674.0,4.843]
[1659307349738,0.05,1674.8,1674.1,3.05]
[1659307349943,2.89804672,1674.7,1674.2,0.20512021]
[1659307351475,3.04106839,1674.7,1674.2,0.20512021]
[1659307351722,2.89804672,1674.6,1674.2,0.20512021]
[1659307352041,2.89804672,1674.5,1674.2,0.00342753]
[1659307352241,3.53,1674.2,1673.5,0.73160645]
[1659307352439,3.53,1674.2,1673.3,0.62318009]
[1659307352440,3.34574672,1674.1,1673.3,4.5]
[1659307352659,3.19804672,1674.0,1673.3,4.5]
[1659307352866,3.39804672,1674.0,1673.3,4.5]
[1659307353436,0.2,1673.8,1673.3,4.5]
[1659307353864,0.2,1673.5,1673.1,7.8711]
[1659307354354,0.2,1673.5,1670.8,0.032]
[1659307354355,0.4,1671.5,1670.8,0.032]
[1659307354688,0.4,1670.9,1669.9,1.97166573]
[1659307354851,0.4,1670.9,1669.5,23.65470752]
[1659307354852,1.0,1670.5,1669.5,23.65470752]
[1659307355034,1.0,1670.5,1669.5,23.35552752]
[1659307355035,3.55,1670.4,1669.5,23.35552752]
[1659307355234,3.85,1670.4,1669.5,23.35552752]
[1659307355508,3.85,1670.4,1669.5,23.40552752]
[1659307355509,0.2,1670.2,1669.5,23.40552752]
[1659307355684,4.05,1670.4,1669.5,23.40552752]
[1659307355685,0.05,1670.3,1669.5,23.40552752]
[1659307355882,3.85,1670.4,1669.5,23.35552752]
[1659307356085,3.85,1670.4,1669.5,23.40552752]
[1659307356309,7.7636684,1670.1,1669.5,23.40552752]
[1659307356492,1.64471435,1670.1,1669.5,23.35552752]
[1659307356818,0.64471435,1670.1,1669.5,23.35552752]
[1659307357322,0.3,1670.5,1669.6,6.5]
[1659307357618,3.0,1670.7,1669.7,0.5]
[1659307357767,1.3,1670.6,1669.7,0.55]
[1659307357968,4.8,1670.6,1669.7,1.1041196]
[1659307358183,1.3,1670.6,1669.7,0.55]
[1659307359277,2.55633234,1670.8,1670.0,4.539]
[1659307359479,1.0,1670.6,1670.3,4.543]
[1659307359988,1.0,1670.6,1670.4,0.60953627]
[1659307360594,4.5,1670.6,1670.4,0.60953627]
[1659307360808,1.0,1670.6,1670.4,1.29881733]
[1659307361008,1.0,1670.6,1670.4,0.60953627]
[1659307361314,1.0,1670.6,1670.5,0.6049953]
[1659307361315,1.6,1670.6,1670.5,0.6049953]
[1659307361700,1.6,1670.6,1670.3,0.34892541]
[1659307364193,1.6,1670.6,1670.0,0.05]
[1659307364194,3.5,1670.5,1670.0,0.05]
[1659307364393,4.1,1670.3,1669.8,0.05]
[1659307364638,4.1,1670.3,1669.6,0.05]
[1659307364639,4.0,1670.2,1669.6,0.05]
[1659307364813,4.4488,1670.2,1669.4,0.05]
[1659307365021,4.4488,1670.2,1669.5,0.35206937]
[1659307365342,0.65,1670.3,1669.6,3.5]
[1659307365492,0.65,1670.3,1669.8,4.539]
[1659307365493,0.3,1670.3,1669.8,4.539]
[1659307365695,0.05,1670.4,1669.9,0.35206761]
[1659307365696,0.3,1670.4,1669.9,0.35206761]
[1659307366333,0.05,1670.6,1670.0,0.67679097]
[1659307366647,1.35,1670.7,1670.1,0.35206673]
[1659307366793,0.05,1670.9,1670.2,8.043]
[1659307367011,0.05,1670.9,1670.1,3.64524382]
[1659307367012,0.05,1671.0,1670.3,4.539]
[1659307367319,2.89324943,1670.9,1670.4,0.35206541]
[1659307367492,2.69324943,1670.9,1670.4,0.35206541]
[1659307367806,0.4486,1670.8,1670.4,0.35206541]
[1659307368009,0.4986,1671.0,1670.4,0.35206541]
[1659307368343,0.2,1670.8,1670.4,0.35206541]
[1659307368520,0.4986,1671.0,1670.1,0.05]
[1659307369032,0.05,1671.0,1670.1,0.05]
[1659307369248,0.05,1671.0,1670.3,4.543]
[1659307369542,0.05,1671.1,1670.4,3.73892572]
[1659307369823,10.78210291,1671.8,1670.4,3.73892572]
[1659307369824,0.05,1671.2,1671.0,3.5]
[1659307370137,0.05,1671.5,1671.1,0.35009663]
[1659307370329,0.25,1671.7,1671.1,0.35009663]
[1659307370539,1.0,1671.4,1670.9,0.05]
[1659307370709,0.4485,1671.3,1670.7,0.05]
[1659307370888,0.4485,1671.3,1670.5,0.05]
[1659307371088,0.4485,1671.3,1670.6,0.35009824]
[1659307371591,0.7485,1671.3,1670.6,0.35009824]
[1659307371939,0.3,1671.3,1671.1,3.5]
[1659307372223,0.05,1671.6,1671.2,0.35196361]
[1659307372434,3.05,1671.9,1671.2,0.35196361]
[1659307372647,3.0,1671.9,1671.2,0.35196361]
[1659307373305,3.24846297,1672.0,1671.2,0.35196361]
[1659307373645,0.4983,1672.0,1671.3,3.5]
[1659307373843,0.05,1672.1,1671.4,0.35196275]
[1659307373993,0.4983,1672.2,1671.4,0.35196275]
[1659307374194,0.4483,1672.2,1671.4,0.35196275]
[1659307374828,0.4483,1672.2,1671.5,3.5]
[1659307375033,0.4483,1672.2,1671.6,0.35196188]
[1659307375418,0.4482,1672.3,1671.6,0.35196188]
[1659307375618,3.34624672,1672.3,1671.6,0.35196188]
[1659307376021,2.79806644,1671.8,1671.5,0.05]
[1659307376320,2.79806644,1671.8,1671.2,0.05]
[1659307376321,2.89804672,1671.7,1671.2,0.05]
[1659307376523,0.4484,1671.6,1671.0,0.05]
[1659307376723,0.4484,1671.6,1670.8,3.55]
[1659307376916,0.05,1671.6,1671.0,3.5]
[1659307377116,0.05,1671.6,1670.7,2.866]
[1659307377117,0.35,1671.7,1671.3,3.5]
[1659307377325,0.3,1671.8,1671.3,3.5]
[1659307377516,0.4483,1672.0,1671.3,3.5]
[1659307377517,0.35,1672.0,1671.3,3.5]
[1659307377780,0.3,1672.0,1671.3,3.5]
[1659307377956,0.3,1672.0,1671.2,0.05]
[1659307377957,0.5,1672.0,1671.2,0.05]
[1659307378178,0.55,1672.0,1671.1,0.05]
[1659307378491,0.55,1672.0,1671.0,3.4486]
[1659307378675,0.05,1671.9,1671.1,3.5]
[1659307379047,0.05,1671.9,1671.0,0.4486]
[1659307379248,3.7983,1671.9,1671.0,3.5]
[1659307379447,0.35,1671.9,1671.0,3.5]
[1659307379649,0.35,1671.9,1671.2,3.5]
[1659307379849,0.35238941,1671.8,1671.2,3.5]
[1659307380150,0.65238941,1671.8,1671.0,0.05]
[1659307380351,0.65238941,1671.8,1671.1,3.5]
[1659307381649,0.3,1671.8,1671.5,3.5]
[1659307381862,0.35,1672.1,1671.5,3.5]
[1659307382049,0.05,1672.2,1671.7,3.5]
[1659307382266,0.35238941,1672.3,1671.7,3.5]
[1659307383048,0.35238941,1672.3,1671.9,3.5]
[1659307383250,0.4982,1672.5,1672.1,3.5]
[1659307383449,5.55238317,1672.7,1672.1,3.5]
[1659307383698,0.35238941,1672.7,1672.1,3.5]
[1659307384009,3.1162053,1672.4,1671.9,0.05]
[1659307384199,3.3644053,1672.4,1671.7,0.05]
[1659307384353,0.35238941,1672.3,1671.6,0.05]
[1659307384554,0.35238941,1672.3,1671.5,3.55]
[1659307384897,0.35238941,1672.3,1671.5,3.5]
[1659307385082,0.35238941,1672.3,1671.6,0.65398414]
[1659307385283,0.65238941,1672.3,1671.6,0.65398414]
[1659307385905,0.65238941,1672.3,1671.5,3.55]
[1659307386103,0.65238941,1672.3,1671.5,3.5]
[1659307386721,0.95136941,1672.3,1671.6,3.45]
[1659307386898,2.89804672,1672.2,1671.6,3.45]
[1659307387097,0.35238941,1672.1,1671.6,3.45]
[1659307387917,0.35238941,1672.1,1671.4,0.05]
[1659307388135,0.35238941,1672.1,1671.5,2.89804672]
[1659307389147,0.2,1671.7,1671.3,0.05]
[1659307389394,0.2,1671.7,1671.3,2.89804672]
[1659307389698,0.2,1671.7,1671.1,11.18624672]
[1659307389699,0.29906,1671.6,1671.1,11.18624672]
[1659307390001,0.35,1671.8,1671.2,2.89804672]
[1659307390176,0.55,1671.9,1671.2,2.89804672]
[1659307390504,0.2,1671.5,1671.1,2.94804672]
[1659307390666,0.05,1671.7,1671.1,2.89804672]
[1659307390863,0.7484,1671.8,1671.1,6.39804672]
[1659307390864,0.4484,1671.8,1671.1,6.39804672]
[1659307391056,0.05,1671.9,1671.2,2.89804672]
[1659307391257,0.05,1671.9,1671.1,3.45]
[1659307391258,0.2,1671.7,1671.1,2.94804672]
[1659307391500,0.2,1671.7,1671.1,2.89804672]
[1659307391501,0.29904,1671.6,1671.1,2.89804672]
[1659307393123,0.29904,1671.6,1671.1,5.39804672]
[1659307393329,0.29904,1671.6,1671.2,2.89804672]
[1659307394224,0.29904,1671.6,1671.1,5.39804672]
[1659307395543,0.2,1671.2,1670.9,0.05]
[1659307395703,0.2,1671.0,1670.6,0.05]
[1659307395909,0.2,1671.0,1670.3,0.05]
[1659307396108,0.2,1671.0,1670.2,3.55]
[1659307396437,0.05,1671.0,1670.4,3.5]
[1659307396640,0.05,1671.0,1670.6,3.5]
[1659307396641,0.29919,1671.0,1670.6,3.5]
[1659307396944,0.35,1671.2,1670.6,3.5]
[1659307397101,0.05,1671.4,1670.6,3.5]
[1659307397429,0.05,1671.4,1670.4,0.05]
[1659307397430,0.2991,1671.1,1670.5,0.05]
[1659307397631,0.2991,1671.1,1670.3,3.8308]
[1659307397833,0.3491,1671.1,1670.3,3.7808]
[1659307397997,0.55238941,1671.0,1670.3,3.7808]
[1659307398199,0.55238941,1671.0,1670.3,3.332]
[1659307398200,0.2,1670.8,1670.3,3.332]
[1659307398426,0.2,1670.8,1670.1,0.4988]
[1659307398627,0.2,1670.8,1670.1,0.4488]
[1659307399029,1.79512,1670.7,1670.1,0.4488]
[1659307399191,1.79512,1670.7,1670.0,4.4468]
[1659307400348,1.79512,1670.7,1670.2,3.5]
[1659307400545,1.79512,1670.7,1670.3,2.89804672]
[1659307402262,0.29919,1670.7,1670.4,3.5]
[1659307402434,0.29919,1670.7,1670.5,2.89804672]
[1659307402634,0.29919,1670.7,1670.6,3.5]
[1659307402846,0.29919,1670.7,1670.6,2.89804672]
[1659307403159,1.79527,1670.7,1670.2,0.05]
[1659307403365,1.79527,1670.7,1670.2,2.89804672]
[1659307403916,2.39527,1670.7,1670.2,2.89804672]
[1659307404162,1.79529,1670.6,1670.2,2.89804672]
[1659307404541,0.29921,1670.6,1670.4,6.39804672]
[1659307404770,0.29921,1670.6,1670.5,2.89804672]
[1659307405160,0.05,1671.0,1670.5,2.89804672]
[1659307405384,0.4485,1671.2,1670.5,2.89804672]
[1659307405385,0.05,1671.2,1670.5,2.89804672]
[1659307405545,0.05,1671.3,1670.6,0.56124969]
[1659307405743,1.49529,1671.1,1670.9,2.89804672]
[1659307405943,0.05,1671.4,1670.9,2.89804672]
[1659307406188,1.0,1671.5,1671.0,0.64701166]
[1659307406367,1.0,1671.5,1671.1,2.89804672]
[1659307406556,4.3,1671.5,1671.1,2.89804672]
[1659307406757,0.29905,1671.4,1670.8,0.05]
[1659307406957,0.29905,1671.4,1670.6,0.05]
[1659307406958,3.08987042,1671.1,1670.6,0.05]
[1659307407276,3.4486,1671.0,1670.4,0.05]
[1659307407479,3.4486,1671.0,1670.3,0.76841065]
[1659307407682,3.4486,1671.0,1670.3,3.46645737]
[1659307407871,1.79503,1671.0,1670.4,9.89804672]
[1659307408219,0.29917,1671.0,1670.5,2.89804672]
[1659307408424,0.29917,1671.0,1670.6,6.39804672]
[1659307408605,0.29917,1671.0,1670.7,2.89804672]
[1659307408606,0.00017,1671.0,1670.7,2.89804672]
[1659307408984,0.34904,1671.3,1670.8,3.5]
[1659307409185,0.34904,1671.3,1670.9,2.89804672]
[1659307409186,0.29904,1671.3,1670.9,2.89804672]
[1659307409380,2.54525,1671.5,1670.9,2.89804672]
[1659307409706,3.6,1671.4,1671.0,2.89804672]
[1659307409880,0.3,1671.4,1671.0,3.58775987]
[1659307410231,0.3,1671.4,1671.0,2.89804672]
[1659307410232,0.29903,1671.4,1671.0,2.89804672]
[1659307410381,0.29903,1671.4,1670.7,0.05]
[1659307410382,0.65238941,1671.3,1670.8,2.89804672]
[1659307410582,0.65238941,1671.3,1670.7,2.89804672]
[1659307410811,0.3,1671.1,1670.7,2.89804672]
[1659307411225,0.6486,1671.0,1670.6,0.498]
[1659307411519,0.6486,1671.0,1670.3,0.05]
[1659307411520,4.0,1670.8,1670.3,0.05]
[1659307411675,4.0,1670.8,1670.1,0.05]
[1659307411676,3.7487,1670.7,1670.1,0.05]
[1659307411877,0.35238941,1670.6,1669.9,0.05]
[1659307412076,0.65238941,1670.6,1670.0,0.01246445]
[1659307412741,2.44806941,1670.6,1670.0,0.01246445]
[1659307412881,0.3,1670.5,1670.0,0.01246445]
[1659307413227,0.3,1670.5,1669.8,0.05]
[1659307413228,3.25043613,1670.4,1669.8,0.05]
[1659307413522,5.79478613,1670.4,1669.6,0.05]
[1659307413680,3.3,1670.3,1669.6,2.89804672]
[1659307414016,3.3,1670.3,1669.5,3.55]
[1659307414017,0.29936,1670.2,1669.7,2.89804672]
[1659307414224,0.29936,1670.2,1669.8,2.75069256]
[1659307414382,0.29936,1670.2,1669.9,2.89804672]
[1659307416189,0.29936,1670.2,1669.7,5.6421023]
[1659307416190,2.89804672,1670.1,1669.7,5.6421023]
[1659307416391,1.5,1669.7,1669.4,0.05]
[1659307416633,3.34704672,1669.6,1669.3,0.69556489]
[1659307416798,3.34704672,1669.6,1668.6,6.20730282]
[1659307416799,3.0,1669.5,1668.6,6.20730282]
[1659307416985,1.04845,1669.4,1668.6,6.20730282]
[1659307417186,1.04845,1669.4,1668.8,3.5]
[1659307417187,0.34945,1669.4,1668.8,3.5]
[1659307417426,0.05,1669.5,1669.2,2.93042758]
[1659307417638,0.29936,1669.7,1669.2,2.93042758]
[1659307417848,0.29936,1669.7,1669.2,3.5]
[1659307418126,0.05,1669.9,1669.5,3.5]
[1659307418337,0.05,1670.2,1669.8,3.5]
[1659307418491,0.05,1670.4,1669.8,3.5]
[1659307418687,1.54638,1670.5,1669.9,3.45]
[1659307418935,1.49638,1670.5,1669.9,3.45]
[1659307419239,0.29924,1670.4,1670.0,3.45]
[1659307419836,0.29924,1670.4,1669.7,0.05]
[1659307420009,0.29924,1670.4,1670.0,3.45]
[1659307421244,0.29924,1670.4,1669.9,0.0124652]
[1659307421430,0.29924,1670.4,1669.7,7.893]
[1659307421431,0.35238941,1670.3,1669.7,7.893]
[1659307421629,1.10118941,1670.3,1669.5,0.8128519]
[1659307421804,0.29931,1670.2,1669.4,0.05]
[1659307422007,0.29931,1670.2,1669.3,11.06173196]
[1659307422198,0.34931,1670.2,1669.4,2.89804672]
[1659307422403,0.2,1669.9,1669.3,11.393]
[1659307422603,0.2994,1669.8,1669.3,10.74104672]
[1659307422801,0.2994,1669.8,1669.3,2.89804672]
[1659307423035,0.65178941,1669.8,1669.3,2.89804672]
[1659307423659,2.14882941,1669.8,1669.2,10.73894672]
[1659307423890,2.14882941,1669.8,1669.3,2.89804672]
[1659307424178,2.14882941,1669.8,1669.2,10.73894672]
[1659307424386,2.34882941,1669.8,1669.2,2.89804672]
[1659307424591,0.2,1669.6,1669.0,0.05]
[1659307424898,2.24577,1669.5,1668.8,0.05]
[1659307425062,0.2,1669.2,1668.8,2.89804672]
[1659307425260,0.2,1668.9,1668.8,2.89804672]
[1659307425597,0.2,1668.9,1668.4,0.05]
[1659307425766,0.5,1668.9,1668.2,3.55]
[1659307425970,0.3,1668.9,1668.2,3.5]
[1659307426780,1.79787,1668.9,1668.2,3.5]
[1659307427022,0.34953,1669.0,1668.5,2.89804672]
[1659307427223,0.05,1669.2,1668.7,3.5]
[1659307427531,12.6684,1669.8,1669.1,3.5]
[1659307427532,0.05,1669.4,1669.1,3.5]
[1659307427744,0.29938,1669.6,1669.2,2.89804672]
[1659307427925,0.65176941,1669.6,1669.2,2.89804672]
[1659307428087,0.449,1669.5,1668.9,0.05]
[1659307428287,0.449,1669.5,1668.7,6.13637639]
[1659307428288,0.29945,1669.4,1668.7,6.13637639]
[1659307428518,0.29945,1669.4,1668.8,2.91052013]
[1659307429034,0.29945,1669.4,1668.9,2.89804672]
[1659307429338,0.29945,1669.4,1668.9,2.91051939]
[1659307429641,0.29945,1669.4,1669.0,2.89804672]
[1659307429821,0.29945,1669.4,1668.7,0.05]
[1659307429822,0.35238941,1669.3,1668.7,0.05]
[1659307430022,0.35238941,1669.3,1668.8,2.89804672]
[1659307430232,0.29945,1669.4,1669.0,3.5]
[1659307431654,0.29945,1669.4,1669.0,6.39804672]
[1659307431861,0.05,1669.7,1669.2,3.5]
[1659307432059,0.29936,1669.8,1669.3,2.89804672]
[1659307432244,0.29936,1669.8,1669.4,3.5]
[1659307432460,0.05,1670.0,1669.5,2.89804672]
[1659307432659,0.2993,1670.1,1669.6,3.5]
[1659307432864,0.2993,1670.1,1669.7,2.89804672]
[1659307433182,3.09804672,1670.0,1669.4,0.05]
[1659307433338,3.09804672,1670.0,1669.2,3.55]
[1659307433339,0.4489,1669.9,1669.2,3.55]
[1659307433540,0.4489,1669.9,1669.3,2.89804672]
[1659307433760,1.49714,1669.9,1669.4,3.5]
[1659307434143,1.49714,1669.9,1669.5,2.89804672]
[1659307434633,1.49714,1669.9,1669.2,0.05]
[1659307434840,1.49714,1669.9,1669.3,2.89804672]
[1659307434841,0.2,1669.8,1669.3,2.89804672]
[1659307435045,0.2,1669.8,1669.1,7.8173]
[1659307435046,3.45043613,1669.8,1669.1,7.8173]
[1659307435244,0.2994,1669.7,1669.1,7.7673]
[1659307435470,3.7994,1669.7,1669.1,7.7673]
[1659307435681,0.449,1669.6,1669.0,14.8492]
[1659307435970,1.49734,1669.5,1669.0,9.26754672]
[1659307436185,1.49734,1669.5,1669.0,6.39804672]
[1659307436350,1.69734,1669.5,1669.0,6.39804672]
[1659307436846,1.49734,1669.5,1669.0,6.39804672]
[1659307437028,0.80138941,1669.6,1669.1,2.89804672]
[1659307437230,0.6494,1669.7,1669.2,3.5]
[1659307437231,0.2994,1669.7,1669.2,3.5]
[1659307437471,0.2994,1669.7,1668.9,0.05]
[1659307437472,0.2994,1669.7,1669.4,3.5]
[1659307437669,0.2994,1669.7,1669.4,6.39804672]
[1659307437872,0.2994,1669.7,1669.2,3.5]
[1659307438056,0.2994,1669.7,1669.3,2.89804672]
[1659307438285,0.2994,1669.7,1669.0,0.4991]
[1659307438478,0.2994,1669.7,1669.1,2.89804672]
[1659307438681,0.2994,1669.7,1669.1,6.39804672]
[1659307438882,0.2994,1669.7,1669.2,2.89804672]
[1659307441002,1.79683,1669.5,1669.0,0.05]
[1659307441318,1.79683,1669.5,1669.1,3.5]
[1659307441464,0.29947,1669.5,1669.2,2.89804672]
[1659307441663,0.29691657,1669.5,1669.2,2.89804672]
[1659307442109,0.29691657,1669.5,1668.9,3.55]
[1659307442243,0.49691657,1669.5,1668.9,6.39804672]
[1659307443243,0.49691657,1669.5,1668.8,18.5092]
[1659307443244,0.29691657,1669.5,1669.1,3.5]
[1659307443407,0.05,1669.7,1669.2,2.89804672]
[1659307443606,0.29933,1669.8,1669.3,3.5]
[1659307444041,3.19737672,1669.8,1669.1,0.05]
[1659307444248,6.197,1669.1,1668.1,0.44961]
[1659307444450,9.59414672,1669.0,1668.1,0.44961]
[1659307444606,0.05,1669.0,1668.5,6.197]
[1659307444808,0.05,1669.2,1668.9,3.5]
[1659307445051,0.29943,1669.3,1668.9,3.5]
[1659307445458,0.05,1669.5,1668.8,2.7405]
[1659307445459,0.05,1669.5,1669.1,3.5]
[1659307445629,0.05,1669.7,1669.1,3.5]
[1659307445837,0.05,1669.9,1669.3,3.5]
[1659307446038,0.29933,1669.9,1669.3,3.5]
[1659307446364,0.65171941,1669.9,1669.3,3.5]
[1659307446518,2.14853941,1669.9,1669.1,10.94517275]
[1659307446716,2.14853941,1669.9,1669.1,10.89517275]
[1659307446717,2.19853941,1669.9,1669.1,10.89517275]
[1659307447170,2.19853941,1669.9,1669.1,7.9495]
[1659307447317,2.19853941,1669.9,1669.3,3.45]
[1659307447521,2.14853941,1669.9,1669.3,3.45]
[1659307447712,0.65171941,1669.9,1669.3,3.45]
[1659307447917,0.65171941,1669.9,1669.4,0.01246893]
[1659307447918,0.29933,1669.9,1669.4,0.01246893]
[1659307448317,0.29933,1669.9,1669.2,0.4991]
[1659307448521,0.05,1670.0,1669.4,3.5]
[1659307448824,1.49662,1670.2,1669.9,8.049]
[1659307448825,0.05,1670.2,1669.9,8.049]
[1659307449027,8.6891,1670.9,1670.1,3.5]
[1659307449028,0.05,1670.5,1670.1,3.5]
[1659307449226,0.29922,1670.5,1670.2,4.609]
[1659307449446,0.05,1670.8,1670.2,8.109]
[1659307449634,0.05,1670.9,1670.5,4.549]
[1659307449838,0.05,1671.2,1670.5,4.9977]
[1659307450061,0.05,1671.3,1670.6,3.5]
[1659307450262,1.94428,1671.6,1670.9,3.5]
[1659307450461,0.29909,1671.4,1670.9,3.5]
[1659307450666,0.36485833,1671.4,1670.9,3.5]